bitfinex-derivatives/quotes_ETHF0:USTF0_20250110
["timestamp","ask_amount","ask_price","bid_price","bid_amount"]
[1736534441118,0.3039,3290.7,3290.6,41.1039]
[1736534441724,0.9127,3290.7,3290.6,40.8]
[1736534442130,0.30392,3290.4,3290.3,3.2078]
[1736534442326,0.78071,3290.6,3290.4,0.30392]
[1736534442523,0.4768,3290.6,3290.5,41.10392]
[1736534442721,0.4768,3290.6,3290.5,40.8]
[1736534442925,3.98851,3290.6,3290.5,40.8]
[1736534443130,4.45271,3290.6,3290.5,40.8]
[1736534443335,1.24491,3290.6,3290.5,40.8]
[1736534444222,0.30393,3290.4,3290.2,0.30394]
[1736534444724,0.6088,3290.3,3290.2,0.30394]
[1736534445320,0.6088,3290.3,3289.8,0.4427]
[1736534445528,0.30397,3289.9,3289.5,0.30401]
[1736534445724,0.30397,3289.9,3289.4,4.0957]
[1736534445725,0.30398,3289.8,3289.6,41.10399]
[1736534445924,2.33937359,3290.1,3289.7,0.30399]
[1736534446122,2.33937359,3290.1,3289.6,41.10399]
[1736534446123,0.30399,3289.8,3289.6,41.10399]
[1736534446426,0.4663,3290.2,3289.7,0.30399]
[1736534446825,0.30396,3290.0,3289.8,0.30398]
[1736534447233,0.6088,3289.9,3289.6,40.8]
[1736534447525,0.6088,3289.9,3289.7,0.30398]
[1736534447725,0.30399,3289.7,3289.6,40.8]
[1736534448625,0.30399,3289.7,3289.6,41.104]
[1736534449024,1.0532,3289.9,3289.6,40.8]
[1736534449731,0.30399,3289.8,3289.7,0.30398]
[1736534450727,0.30399,3289.7,3289.6,41.10399]
[1736534450924,0.30399,3289.8,3289.7,0.30399]
[1736534452932,0.30393,3290.4,3289.6,40.8]
[1736534453124,3.51172,3290.5,3290.0,3.2078]
[1736534453326,3.2078,3290.5,3290.0,3.2078]
[1736534453526,0.30394,3290.3,3290.2,0.30394]
[1736534453731,0.30394,3290.3,3290.2,41.10394]
[1736534454031,3.2078,3290.5,3290.2,40.8]
[1736534454231,0.30393,3290.4,3290.3,0.30393]
[1736534454624,3.2078,3290.5,3290.2,40.8]
[1736534454828,0.30393,3290.3,3290.2,41.10394]
[1736534455626,0.30393,3290.4,3290.3,0.30393]
[1736534456923,3.51172,3290.5,3290.4,0.30392]
[1736534457122,3.2078,3290.5,3290.2,40.8]
[1736534457430,0.30393,3290.4,3290.3,0.30392]
[1736534460631,0.30392,3290.5,3290.4,0.30392]
[1736534461430,0.30393,3290.4,3290.3,0.30392]
[1736534461628,3.22827359,3290.7,3290.2,40.8]
[1736534461828,0.30393,3290.3,3290.2,40.8]
[1736534462035,0.30395,3290.1,3290.0,3.2078]
[1736534462228,2.64332359,3290.1,3290.0,3.2078]
[1736534462423,0.30397,3289.9,3289.8,41.10398]
[1736534463225,0.30397,3289.9,3289.8,40.8]
[1736534464635,0.9288,3290.0,3289.3,0.476]
[1736534464833,0.30406,3289.1,3289.0,0.30405]
[1736534465028,0.30406,3289.1,3288.8,3.2078]
[1736534465029,2.33937359,3289.1,3288.8,3.2078]
[1736534465231,0.88406,3289.0,3288.9,41.10406]
[1736534465427,0.58,3289.0,3288.9,41.10406]
[1736534465731,0.4517,3289.3,3289.2,0.30404]
[1736534465932,0.30398,3289.8,3289.7,0.30398]
[1736534466236,1.5135,3289.9,3289.8,0.30398]
[1736534466435,3.09914359,3290.6,3290.2,0.30394]
[1736534466633,0.30393,3290.4,3290.3,0.30393]
[1736534466932,0.30393,3290.4,3289.9,0.4726]
[1736534467139,0.30393,3290.4,3290.3,0.30393]
[1736534467329,0.30393,3290.4,3290.3,41.10393]
[1736534468532,1.33983,3290.4,3289.6,3.2078]
[1736534468833,0.30397,3290.0,3289.9,0.30396]
[1736534469035,0.88396,3290.0,3289.9,41.10396]
[1736534469433,0.88396,3290.0,3289.9,40.8]
[1736534469834,0.88396,3290.0,3289.6,3.2078]
[1736534469835,0.30399,3289.7,3289.6,3.2078]
[1736534470142,0.304,3289.6,3289.2,3.2078]
[1736534470340,0.30399,3289.7,3289.6,0.30399]
[1736534470742,0.30402,3289.4,3289.3,40.8]
[1736534471940,0.30405,3289.0,3288.9,0.30406]
[1736534472135,0.30407,3288.9,3288.8,0.30406]
[1736534472438,0.30408,3288.8,3288.6,3.2078]
[1736534472639,0.30405,3289.1,3289.0,0.30404]
[1736534473734,3.28077359,3289.3,3288.6,3.2078]
[1736534473937,3.28077359,3289.3,3288.7,0.76021]
[1736534474134,0.30405,3289.1,3288.7,0.76021]
[1736534474336,3.28077359,3289.3,3288.7,0.76021]
[1736534474537,0.30404,3289.2,3289.1,0.30404]
[1736534475247,0.475,3289.3,3289.0,3.2078]
[1736534475540,0.304,3289.6,3289.5,0.30401]
[1736534475950,0.8968,3289.8,3289.0,3.2078]
[1736534476132,2.33937359,3289.6,3288.9,0.76015]
[1736534476337,0.30403,3289.3,3289.2,0.30403]
[1736534476640,2.33937359,3289.6,3289.1,40.8]
[1736534476849,0.30402,3289.4,3289.3,0.30401]
[1736534477449,0.30401,3289.5,3289.4,0.30401]
[1736534477841,2.33937359,3289.6,3289.1,44.0078]
[1736534478043,0.8968,3289.8,3289.1,44.0078]
[1736534478253,0.8968,3289.8,3289.7,0.30399]
[1736534478546,3.73837359,3290.5,3289.5,3.2078]
[1736534478748,0.9365,3290.4,3290.3,0.30393]
[1736534478944,0.3039,3290.7,3290.6,0.3039]
[1736534480551,0.4679,3290.8,3290.7,0.3039]
[1736534480753,0.30386,3291.1,3290.4,3.96762]
[1736534480950,0.30386,3291.1,3291.0,0.30387]
[1736534481147,2.33937359,3291.1,3290.8,3.2078]
[1736534481345,2.33937359,3291.1,3290.3,40.8]
[1736534481346,0.30388,3290.9,3290.4,3.2078]
[1736534481548,2.33937359,3291.1,3290.4,3.2078]
[1736534481754,2.64326359,3290.8,3290.7,0.3039]
[1736534482056,2.33937359,3290.8,3290.4,3.2078]
[1736534482250,0.30391,3290.7,3290.6,0.3039]
[1736534483349,2.33937359,3290.8,3290.3,40.8]
[1736534483648,0.3039,3290.7,3290.6,0.3039]
[1736534484043,5.54717359,3291.1,3290.3,40.8]
[1736534484350,5.54717359,3291.1,3289.8,3.09931359]
[1736534484351,0.30392,3290.5,3290.4,0.30392]
[1736534484556,0.30394,3290.3,3290.2,0.30394]
[1736534484848,1.0485,3290.6,3289.9,40.8]
[1736534485049,0.30394,3290.3,3289.9,40.8]
[1736534485351,1.0485,3290.6,3289.9,40.8]
[1736534485549,0.30394,3290.3,3290.2,0.30394]
[1736534485754,1.0485,3290.6,3289.9,40.8]
[1736534485955,0.30394,3290.3,3290.2,0.30394]
[1736534486351,0.30393,3290.4,3290.3,0.30393]
[1736534486555,0.30394,3290.3,3290.2,0.30394]
[1736534487055,1.0485,3290.6,3289.9,40.8]
[1736534487350,0.30393,3290.4,3289.9,40.8]
[1736534487556,1.0485,3290.6,3290.5,0.30392]
[1736534487746,0.4333,3290.7,3290.6,0.30391]
[1736534487950,0.4395,3291.0,3290.9,0.30388]
[1736534488150,0.74337,3291.0,3290.9,0.30388]
[1736534488361,0.30389,3290.9,3290.8,0.30389]
[1736534488654,0.30389,3290.8,3290.7,0.30389]
[1736534488850,0.30388,3290.9,3290.8,0.30388]
[1736534489446,0.30388,3290.9,3289.5,0.76001]
[1736534489447,0.58,3290.9,3289.5,0.76001]
[1736534489657,0.30396,3290.1,3290.0,0.30396]
[1736534489860,3.2078,3290.3,3289.8,3.2078]
[1736534490161,0.30397,3290.0,3289.9,0.30396]
[1736534491258,0.88396,3290.0,3289.9,40.8]
[1736534492857,0.58,3290.0,3289.3,0.4347]
[1736534493159,0.30401,3289.5,3289.4,0.30401]
[1736534493557,0.58,3289.5,3289.2,0.445]
[1736534493756,0.30403,3289.3,3289.2,0.74903]
[1736534494260,3.2078,3289.7,3289.4,0.30401]
[1736534494457,0.30401,3289.5,3289.4,0.30401]
[1736534494855,0.58,3289.6,3289.2,0.445]
[1736534495059,0.30403,3289.3,3289.2,0.74904]
[1736534495259,0.30402,3289.4,3289.3,0.30402]
[1736534495861,0.30402,3289.4,3289.3,41.10402]
[1736534496652,0.30402,3289.4,3289.3,40.8]
[1736534497059,0.4571,3289.4,3288.8,0.30407]
[1736534497260,0.30406,3289.0,3288.9,0.30406]
[1736534497463,3.51185,3289.1,3289.0,0.30405]
[1736534497664,0.30405,3289.1,3289.0,0.30405]
[1736534497859,0.30406,3288.9,3288.8,41.10407]
[1736534498165,0.30406,3289.0,3288.9,0.30406]
[1736534498558,0.58,3289.1,3288.8,40.8]
[1736534498763,0.88405,3289.1,3289.0,0.30405]
[1736534499362,0.30406,3289.0,3288.9,0.30406]
[1736534499559,0.88405,3289.1,3289.0,0.30405]
[1736534499761,0.30406,3289.0,3288.9,0.30406]
[1736534499962,0.58,3289.1,3288.9,0.30406]
[1736534500156,0.88405,3289.1,3289.0,0.30405]
[1736534500758,0.58,3289.1,3289.0,0.30405]
[1736534500958,3.6551,3289.5,3289.4,0.30402]
[1736534500959,3.95911,3289.5,3289.4,0.30402]
[1736534501269,3.6551,3289.5,3288.9,0.4432]
[1736534501762,0.30402,3289.4,3289.3,0.30402]
[1736534502160,0.30402,3289.4,3289.3,41.10402]
[1736534502460,0.30402,3289.4,3289.3,40.8]
[1736534502657,0.30402,3289.4,3289.3,41.10403]
[1736534503361,0.30402,3289.4,3289.3,40.8]
[1736534504170,0.30402,3289.4,3289.3,41.10403]
[1736534504963,0.30402,3289.4,3289.3,40.8]
[1736534505268,0.30407,3288.9,3288.8,0.30407]
[1736534505772,0.88407,3288.9,3288.8,41.10407]
[1736534506265,0.88407,3288.9,3288.8,40.8]
[1736534506466,0.58,3288.9,3288.4,0.3041]
[1736534506667,0.30413,3288.3,3288.2,0.30412]
[1736534506968,0.30413,3288.3,3288.2,41.10412]
[1736534507175,0.88413,3288.3,3288.2,41.10412]
[1736534507466,0.58,3288.3,3288.2,41.10412]
[1736534508074,0.30409,3288.7,3288.6,0.30408]
[1736534508269,0.8841,3288.6,3288.5,0.30409]
[1736534508871,0.8841,3288.6,3288.2,40.8]
[1736534508872,0.30412,3288.3,3288.2,40.8]
[1736534509063,0.30412,3288.3,3288.2,41.10413]
[1736534510272,0.30412,3288.3,3288.2,40.8]
[1736534511571,0.30412,3288.3,3288.2,41.10413]
[1736534511770,0.30412,3288.3,3288.2,40.8]
[1736534512877,0.30412,3288.3,3288.2,41.10413]
[1736534514676,2.64349359,3288.3,3288.2,40.8]
[1736534514980,5.85129359,3288.3,3288.2,40.8]
[1736534517975,5.54717359,3288.3,3287.7,0.4406]
[1736534518176,0.30419,3287.6,3287.5,0.30419]
[1736534518374,5.54717359,3287.8,3287.3,0.4493]
[1736534518575,0.3042,3287.4,3287.3,41.10421]
[1736534519075,0.8842,3287.4,3287.3,40.8]
[1736534519476,4.5358,3287.4,3287.3,40.8]
[1736534519674,4.34,3287.4,3287.3,40.8]
[1736534520180,0.30424,3287.1,3286.9,0.30424]
[1736534520376,0.30424,3287.0,3286.9,0.30424]
[1736534520583,2.33937359,3287.2,3286.9,40.8]
[1736534520884,0.30423,3287.1,3287.0,0.30424]
[1736534521088,0.30423,3287.1,3286.9,41.10424]
[1736534521379,0.3842,3287.0,3286.9,41.10424]
[1736534521784,22.02837359,3287.0,3284.4,3.2078]
[1736534521976,2.33937359,3284.6,3284.5,0.30447]
[1736534522178,2.33937359,3284.6,3284.5,0.78057]
[1736534522482,3.2078,3285.6,3284.5,0.78057]
[1736534522483,2.33937359,3285.1,3284.8,0.70302641]
[1736534522682,2.33937359,3285.1,3285.0,3.51222]
[1736534522981,2.33937359,3285.1,3285.0,4.21524641]
[1736534523380,2.33937359,3285.1,3285.0,45.01524641]
[1736534523581,2.33937359,3285.1,3285.0,44.71082641]
[1736534524282,2.64378359,3285.1,3285.0,44.71082641]
[1736534524987,2.64378359,3285.1,3285.0,41.50302641]
[1736534525588,2.33937359,3285.1,3285.0,41.50302641]
[1736534526285,2.64378359,3285.1,3285.0,41.50302641]
[1736534526781,3.10968359,3285.1,3285.0,0.70302641]
[1736534527088,4.93908359,3285.1,3285.0,40.8]
[1736534527288,0.30449,3284.4,3284.1,0.3045]
[1736534527490,0.30449,3284.4,3284.3,0.70302641]
[1736534527678,0.30448,3284.4,3284.3,41.50302641]
[1736534528088,2.64384359,3284.5,3284.3,41.50302641]
[1736534528387,2.64384359,3284.5,3284.4,0.70302641]
[1736534529395,0.30448,3284.1,3283.7,0.30451]
[1736534529585,2.33937359,3283.8,3283.7,0.30451]
[1736534529786,2.33937359,3283.8,3283.7,41.10451]
[1736534529982,2.33937359,3283.8,3283.7,41.80753641]
[1736534530683,3.2078,3284.8,3284.4,0.30444]
[1736534530886,0.3044,3285.0,3284.8,0.70302641]
[1736534531087,0.8983,3285.1,3284.8,0.70302641]
[1736534531286,0.3044,3284.9,3284.8,0.70302641]
[1736534531592,2.64377359,3285.0,3284.8,41.50302641]
[1736534532389,0.3044,3284.9,3284.8,41.50302641]
[1736534532983,0.4659,3285.1,3284.8,41.50302641]
[1736534533188,3.51218,3285.2,3285.0,0.70302641]
[1736534533389,3.51218,3285.2,3285.1,0.70302641]
[1736534534992,0.30445,3284.4,3284.2,0.30447]
[1736534535692,0.30445,3284.4,3283.7,0.4724]
[1736534535693,0.30447,3284.2,3284.1,40.8]
[1736534535892,0.30452,3283.7,3283.4,3.51234]
[1736534536089,2.84885457,3284.2,3283.4,3.2078]
[1736534536289,0.3045,3283.9,3283.7,0.30451]
[1736534536589,1.52191,3285.2,3284.3,0.30445]
[1736534536590,0.30445,3284.5,3284.3,0.30445]
[1736534536792,0.30445,3284.5,3284.4,3.2078]
[1736534536993,3.60986457,3285.0,3284.0,3.2078]
[1736534537382,2.84885457,3285.0,3284.1,40.8]
[1736534537587,0.30446,3284.3,3284.1,41.10447]
[1736534537792,0.76101,3284.9,3284.1,40.8]
[1736534537988,0.30447,3284.2,3284.1,40.8]
[1736534538192,0.30447,3284.2,3284.1,44.31228]
[1736534538388,0.30447,3284.2,3284.1,44.31227]
[1736534538993,0.76106,3284.8,3284.1,44.31227]
[1736534539287,0.76101,3284.9,3284.2,0.30447]
[1736534539487,0.76101,3284.9,3284.1,44.0078]
[1736534539682,0.30446,3284.3,3284.1,44.31227]
[1736534539889,0.30446,3284.3,3284.1,44.0078]
[1736534540095,0.30447,3284.2,3284.1,40.8]
[1736534540988,6.36112457,3284.2,3284.1,40.8]
[1736534541186,0.3045,3283.8,3283.7,0.4387]
[1736534541587,0.3045,3283.8,3283.7,41.2387]
[1736534542895,6.05665457,3284.2,3283.7,41.2387]
[1736534542896,3.2078,3284.2,3283.7,41.2387]
[1736534543088,0.30448,3284.1,3284.0,0.30448]
[1736534543288,0.30448,3284.1,3283.7,41.2387]
[1736534543491,0.76115,3284.3,3283.7,41.2387]
[1736534543787,0.3045,3283.8,3283.7,41.2387]
[1736534546193,0.3045,3283.8,3283.7,40.8]
[1736534546789,0.30454,3283.5,3283.4,0.30454]
[1736534547198,0.30454,3283.5,3283.4,41.10454]
[1736534547602,0.30453,3283.6,3283.5,0.30453]
[1736534547995,0.30453,3283.6,3283.4,40.8]
[1736534547996,0.9204,3284.3,3283.3,4.20705457]
[1736534548301,3.2078,3284.5,3284.1,0.30447]
[1736534548495,3.2078,3284.5,3283.7,3.2078]
[1736534548702,0.76113,3284.4,3283.9,0.30449]
[1736534548900,0.3045,3283.9,3283.8,0.3045]
[1736534549601,0.3045,3283.8,3283.7,3.51231]
[1736534549801,0.3045,3283.9,3283.8,0.3045]
[1736534550003,0.3045,3283.8,3283.7,3.51231]
[1736534550214,0.3045,3283.8,3283.7,3.2078]
[1736534550501,0.3045,3283.9,3283.8,0.3045]
[1736534551107,0.4703,3284.3,3283.7,3.2078]
[1736534551308,0.30449,3284.0,3283.7,3.2078]
[1736534551506,0.4703,3284.3,3283.7,3.2078]
[1736534551703,0.30446,3284.3,3284.2,0.30446]
[1736534552417,3.2078,3284.5,3283.7,3.2078]
[1736534552621,0.30447,3284.2,3284.1,0.30447]
[1736534552920,0.30448,3284.1,3284.0,0.30448]
[1736534553112,0.30447,3284.2,3284.1,0.30447]
[1736534553416,3.2078,3284.5,3283.6,0.7613]
[1736534553618,0.30448,3284.2,3284.1,0.30447]
[1736534553817,3.2078,3284.5,3283.9,3.2078]
[1736534554014,2.84885457,3284.2,3283.5,40.8]
[1736534554320,0.30452,3283.7,3283.6,0.30452]
[1736534555616,0.3045,3283.9,3283.8,0.3045]
[1736534556116,0.30449,3284.0,3283.9,0.30449]
[1736534556520,3.6509,3284.5,3283.5,43.15259752]
[1736534556723,0.30445,3284.4,3284.3,0.30445]
[1736534556919,0.30445,3284.5,3284.4,0.30445]
[1736534557219,0.2472641,3285.3,3284.4,0.30445]
[1736534557220,0.30436,3285.4,3285.2,0.30438]
[1736534557526,0.30436,3285.4,3285.3,0.30436]
[1736534557820,0.30435,3285.5,3285.4,0.30435]
[1736534558220,0.76701,3285.9,3285.8,0.30432]
[1736534558420,0.30431,3285.9,3285.8,0.30432]
[1736534558923,0.30432,3285.8,3285.7,0.30432]
[1736534559227,0.30433,3285.7,3285.6,0.30433]
[1736534559413,0.30435,3285.5,3285.4,3.2078]
[1736534560111,0.30439,3285.0,3284.9,0.3044]
[1736534560620,3.2078,3285.3,3284.6,3.2078]
[1736534560621,0.30439,3285.1,3285.0,0.30439]
[1736534560816,0.883,3285.5,3284.6,3.2078]
[1736534561014,0.883,3285.5,3285.1,0.30438]
[1736534561015,0.30438,3285.2,3285.1,0.30438]
[1736534561219,0.30436,3285.4,3285.0,0.30438]
[1736534561419,4.0908,3285.5,3284.6,3.2078]
[1736534561620,0.30439,3285.1,3285.0,0.30439]
[1736534563025,0.3044,3285.0,3284.9,0.3044]
[1736534563418,0.30439,3285.1,3285.0,0.30439]
[1736534564428,0.30436,3285.4,3285.3,0.30436]
[1736534564630,0.30436,3285.4,3284.9,0.3044]
[1736534564929,0.30436,3285.4,3284.8,0.76104]
[1736534564930,4.6038,3285.9,3285.2,3.2078]
[1736534565130,0.76081,3285.8,3284.8,3.2078]
[1736534565422,0.30437,3285.4,3285.2,0.30437]
[1736534565728,0.30437,3285.3,3285.1,0.30438]
[1736534565922,0.30437,3285.3,3285.2,0.30438]
[1736534566423,5.5502,3285.9,3284.8,3.2078]
[1736534566424,0.30436,3285.4,3284.8,3.2078]
[1736534566622,0.30437,3285.3,3285.2,0.30437]
[1736534567025,5.5502,3285.9,3284.8,3.2078]
[1736534567224,0.76083,3285.7,3284.8,3.2078]
[1736534567419,0.30437,3285.3,3285.1,0.30438]
[1736534568230,0.3044,3285.0,3284.8,0.3044]
[1736534568531,0.3044,3285.0,3284.5,40.8]
[1736534568727,0.3044,3285.0,3284.9,0.3044]
[1736534569434,3.9687,3285.4,3284.5,40.8]
[1736534569635,2.84759996,3285.2,3284.5,40.8]
[1736534569838,0.30443,3284.6,3284.5,41.10444]
[1736534570030,0.30443,3284.6,3284.5,40.8]
[1736534570222,0.30443,3284.6,3284.4,3.94945]
[1736534570223,2.60447,3285.1,3284.4,3.2078]
[1736534570429,0.30444,3284.5,3284.4,3.2078]
[1736534570727,0.30444,3284.6,3284.5,0.30444]
[1736534570927,0.30444,3284.6,3284.4,44.0078]
[1736534570928,1.8435,3285.1,3284.4,3.2078]
[1736534571127,0.30441,3284.9,3284.8,0.30441]
[1736534571329,1.8435,3285.1,3284.4,3.2078]
[1736534571527,1.8435,3285.1,3284.5,40.8]
[1736534571726,0.30442,3284.8,3284.7,0.30442]
[1736534571928,0.30443,3284.6,3284.5,40.8]
[1736534572123,0.30443,3284.6,3284.5,41.10444]
[1736534572834,0.30441,3284.8,3284.6,0.30443]
[1736534573031,0.30441,3284.8,3284.7,0.30442]
[1736534573430,1.8435,3285.1,3284.5,40.8]
[1736534573631,0.30441,3284.9,3284.8,0.30441]
[1736534573837,1.8435,3285.1,3284.5,40.8]
[1736534574029,0.30443,3284.7,3284.6,0.30443]
[1736534574336,0.30443,3284.6,3284.5,41.10443]
[1736534574839,0.30443,3284.6,3284.5,40.8]
[1736534575735,0.30443,3284.6,3284.5,41.10444]
[1736534577026,0.30443,3284.6,3284.5,40.8]
[1736534577232,0.30443,3284.6,3284.5,41.10444]
[1736534578136,0.30443,3284.6,3284.5,40.8]
[1736534578740,0.30443,3284.6,3284.5,41.10444]
[1736534579331,0.30443,3284.6,3284.5,40.8]
[1736534579632,0.30443,3284.6,3284.5,41.10444]
[1736534579936,0.30443,3284.6,3284.5,40.8]
[1736534580336,3.2078,3284.8,3283.8,0.4557]
[1736534580337,6.05539996,3284.8,3283.8,0.4557]
[1736534580533,0.30451,3283.7,3283.6,3.51232]
[1736534580837,0.30451,3283.8,3283.7,0.30451]
[1736534581938,0.30451,3283.7,3283.6,44.0078]
[1736534582133,0.30451,3283.7,3283.6,44.31232]
[1736534582335,0.30451,3283.7,3283.2,1.387]
[1736534582336,3.2078,3283.7,3283.2,1.387]
[1736534582640,3.2078,3283.7,3282.7,3.2078]
[1736534582641,0.30457,3283.2,3283.1,0.30457]
[1736534582838,3.2078,3283.7,3283.1,3.2078]
[1736534583040,0.30454,3283.5,3283.4,0.30454]
[1736534583241,0.30455,3283.4,3283.3,0.30454]
[1736534583736,0.30456,3283.3,3283.2,0.30456]
[1736534584341,0.30456,3283.2,3283.1,3.51236]
[1736534584534,3.2078,3283.7,3283.1,3.2078]
[1736534584934,3.2078,3283.7,3283.6,0.30452]
[1736534585441,0.30451,3283.8,3283.3,0.76137]
[1736534585634,3.96899,3284.2,3283.7,0.30451]
[1736534585839,0.30451,3283.8,3283.7,0.30451]
[1736534586437,0.30451,3283.7,3283.6,44.31232]
[1736534586831,0.30451,3283.7,3283.6,40.8]
[1736534587043,2.65688274,3283.7,3283.6,40.8]
[1736534587943,0.30451,3283.7,3283.6,40.8]
[1736534588539,0.30451,3283.7,3283.6,41.10452]
[1736534588743,0.4442,3284.1,3283.6,40.8]
[1736534588944,0.30451,3283.9,3283.8,0.3045]
[1736534589245,0.74869,3284.1,3284.0,0.30449]
[1736534589435,3.2078,3284.8,3284.0,3.2078]
[1736534589737,4.0929,3284.8,3284.1,0.4669]
[1736534589944,0.30445,3284.5,3284.4,0.30444]
[1736534590846,0.30444,3284.6,3284.5,0.30443]
[1736534591141,0.30445,3284.5,3284.4,0.30444]
[1736534591839,0.30447,3284.2,3284.1,0.4669]
[1736534592040,0.30448,3284.1,3284.0,3.2078]
[1736534592241,0.77338,3284.1,3284.0,3.2078]
[1736534592433,0.4689,3284.1,3284.0,3.2078]
[1736534592637,2.35237274,3284.6,3284.2,0.30446]
[1736534592638,0.30446,3284.3,3284.2,0.30446]
[1736534593035,0.4689,3284.5,3284.0,3.2078]
[1736534593233,0.30448,3284.1,3284.0,3.51228]
[1736534593538,0.30447,3284.2,3284.1,0.30447]
[1736534594140,0.30448,3284.1,3284.0,3.2078]
[1736534594848,0.30446,3284.4,3284.3,0.30445]
[1736534595345,2.35237274,3284.6,3284.5,0.30443]
[1736534595346,0.30444,3284.6,3284.5,0.30443]
[1736534596138,0.30444,3284.6,3284.1,0.4372335]
[1736534596139,3.6451,3284.8,3284.1,0.4372335]
[1736534596340,0.30446,3284.4,3284.3,0.30445]
[1736534597340,0.30445,3284.5,3284.4,0.30445]
[1736534597736,3.6451,3284.8,3284.1,0.4372335]
[1736534597942,0.30446,3284.4,3284.3,0.30445]
[1736534598143,3.6451,3284.8,3284.1,0.4372335]
[1736534598343,0.30445,3284.5,3284.4,0.30444]
[1736534599246,0.30444,3284.6,3284.5,0.30443]
[1736534599546,0.30441,3284.8,3284.7,0.30442]
[1736534600143,0.30441,3284.8,3284.7,41.10442]
[1736534600549,0.4784,3284.9,3284.7,40.8]
[1736534600852,0.30441,3284.9,3284.8,0.3044]
[1736534601450,6.50017274,3285.2,3284.9,0.30439]
[1736534601451,0.3044,3285.0,3284.9,0.30439]
[1736534603454,18.18907269,3285.2,3284.5,0.9359]
[1736534603645,0.76097,3285.1,3284.5,0.9359]
[1736534603846,0.30444,3284.6,3284.5,0.30444]
[1736534604045,0.30444,3284.5,3284.4,40.8]
[1736534604245,1.22414,3284.5,3284.4,40.8]
[1736534604652,1.22414,3284.5,3284.4,41.10445]
[1736534604850,3.2078,3284.8,3284.4,40.8]
[1736534605144,0.9197,3285.1,3284.4,40.8]
[1736534605452,0.3044,3285.0,3284.9,0.30439]
[1736534605755,0.9197,3285.1,3285.0,0.30439]
[1736534605756,0.3044,3285.1,3285.0,0.30439]
[1736534606848,14.89669995,3285.2,3284.8,0.4741]
[1736534607048,11.68889995,3285.2,3285.1,0.30438]
[1736534607657,0.9224,3285.6,3285.0,3.2078]
[1736534607852,0.30437,3285.4,3285.3,0.30435]
[1736534608351,0.9224,3285.6,3285.0,3.96878]
[1736534608352,0.30435,3285.5,3285.4,0.30435]
[1736534608749,11.68889995,3285.7,3285.4,44.0078]
[1736534608954,11.68889995,3285.7,3285.6,0.30434]
[1736534609149,11.99322995,3285.7,3285.6,0.30434]
[1736534609349,11.68889995,3285.7,3285.6,0.30434]
[1736534610052,0.42741853,3285.8,3285.7,0.30433]
[1736534610544,11.68889995,3286.3,3285.6,2.80257274]
[1736534610744,3.6746,3286.6,3286.1,3.2078]
[1736534610948,0.36186355,3286.7,3286.6,0.30424]
[1736534610949,0.30424,3286.7,3286.6,0.30424]
[1736534611554,0.30424,3286.7,3286.6,41.10424]
[1736534612562,3.25367274,3287.1,3286.6,40.8]
[1736534612963,0.30424,3286.7,3286.6,41.10424]
[1736534613162,0.76044,3287.4,3286.6,41.10424]
[1736534613163,3.2078,3287.7,3286.6,49.54437274]
[1736534613363,0.30407,3288.5,3287.9,0.30413]
[1736534613659,0.30407,3288.5,3287.3,0.76046]
[1736534613660,3.2078,3288.3,3287.4,0.30417]
[1736534613851,2.35237274,3288.7,3287.6,2.35237274]
[1736534613852,0.9087,3288.4,3287.6,2.35237274]
[1736534614055,0.9087,3288.4,3287.9,40.8]
[1736534614056,0.30412,3288.0,3287.9,40.8]
[1736534614563,0.30412,3288.0,3287.3,2.35237274]
[1736534614564,3.2078,3288.2,3287.3,2.35237274]
[1736534614860,3.2078,3288.2,3287.7,0.30414]
[1736534615060,0.30412,3288.0,3287.7,0.30414]
[1736534615259,2.35237274,3288.1,3287.4,40.8]
[1736534615464,3.2078,3287.8,3287.0,2.35237274]
[1736534615668,3.2078,3287.8,3286.7,5.56017274]
[1736534615963,0.30418,3287.3,3287.0,0.3042]
[1736534616161,0.30418,3287.4,3286.7,5.56017274]
[1736534616360,0.30418,3287.3,3287.1,0.30419]
[1736534616560,0.4456,3287.6,3286.7,5.56017274]
[1736534616757,0.30419,3287.3,3287.0,0.3042]
[1736534617065,0.4456,3287.6,3286.7,5.56017274]
[1736534617260,0.30419,3287.3,3287.1,0.3042]
[1736534617766,0.3042,3287.1,3286.9,0.30421]
[1736534617958,0.4731,3287.2,3286.7,3.2078]
[1736534618158,0.77729,3287.2,3287.0,0.3042]
[1736534618359,0.77729,3287.2,3286.7,3.2078]
[1736534618656,0.77729,3287.2,3287.0,0.3042]
[1736534619865,0.4731,3287.2,3286.7,3.2078]
[1736534620063,0.4731,3287.2,3287.0,0.3042]
[1736534621063,0.77729,3287.2,3287.0,0.3042]
[1736534621265,0.4731,3287.2,3287.1,0.3042]
[1736534621464,0.77729,3287.2,3287.1,0.3042]
[1736534621768,0.4731,3287.2,3287.1,0.3042]
[1736534622560,0.77729,3287.2,3287.0,0.3042]
[1736534622864,0.4731,3287.2,3286.7,3.2078]
[1736534623066,0.77729,3287.2,3286.7,3.2078]
[1736534623261,0.4731,3287.2,3287.1,0.3042]
[1736534623657,1.8693,3287.5,3286.7,5.56017274]
[1736534623861,1.8376,3287.6,3287.1,3.2078]
[1736534624061,0.4456,3287.6,3287.5,0.30416]
[1736534624566,0.74975,3287.6,3287.5,0.30416]
[1736534625270,0.4456,3287.6,3287.5,0.30416]